Cogmind - Beta 10.2 @@@ ROGUE MODE // 2021.08.16 @ 22:51:37 Player: Gilgameshx13 Result: Destroyed by Y-45 Defender with Beam Rifle Performance ------------- Evolutions (1) 500 Regions Visited (3) 600 Robots Destroyed (1) 5 Value Destroyed (34) 34 Prototype IDs (0) 0 Alien Tech Used (0) 0 Bonus (200) 200 TOTAL SCORE: 1339 Bonus ------- Pacifist 200 Cogmind --------- Core Integrity 0/400 Matter 239/300 Energy 80/125 System Corruption 0% Temperature Cool (9) Movement Core (400) Ox7 Location -9/Storage Parts ------- > --- POWER (1) -------- Light Ion Engine > --- PROPULSION (2) --- (None) > --- UTILITY (4) ------ Small Storage Unit Large Storage Unit > --- WEAPON (2) ------- (None) > --- INVENTORY (12) --- Heavy Ion Engine Heavy Ion Engine Cooled Ion Engine Cooled Ion Engine Terrain Scan Processor Peak State ------------ > --- POWER ------------ (None) > --- PROPULSION ------- Wheel Compact Wheel > --- UTILITY ---------- Small Storage Unit Terrain Scanner > --- WEAPON ----------- EM Pulse Gun Medium Laser > --- INVENTORY -------- Ion Engine Light Ion Engine Aluminum Leg Aluminum Leg EM Pulse Gun [Rating: 6] Favorites ----------- Power Ion Engine Engine Ion Engine Propulsion Compact Wheel Leg Aluminum Leg Wheel Compact Wheel Utility Small Storage Unit Device Terrain Scanner Storage Small Storage Unit Weapon EM Pulse Gun Energy Gun EM Pulse Gun Build | -11 -10 -9 -9 ------- Run | Scr Mat Mat Sto Slots Evolved 2 | . . 2 . Power . | . . . . Propulsion . | . . . . Utility 2 | . . 2 . Weapon . | . . . . Parts Attached 13 | 5 1 1 6 Power 2 | . . . 2 Engine 2 | . . . 2 Core . | . . . . Reactor . | . . . . Propulsion 4 | 2 . . 2 Treads . | . . . . Leg 2 | . . . 2 Wheel 2 | 2 . . . Hover . | . . . . Flight . | . . . . Utility 3 | 1 1 1 . Device 1 | . 1 . . Storage 2 | 1 . 1 . Processor . | . . . . Hackware . | . . . . Protection . | . . . . Artifact . | . . . . Weapon 4 | 2 . . 2 Energy Gun 4 | 2 . . 2 Energy Cannon . | . . . . Ballistic Gun . | . . . . Ballistic Cannon . | . . . . Launcher . | . . . . Special Weapon . | . . . . Impact Weapon . | . . . . Slashing Weapon . | . . . . Piercing Weapon . | . . . . Special Melee Weapon . | . . . . Unidentified Prototypes . | . . . . Parts Lost 6 | . . 2 4 Power 1 | . . . 1 Propulsion 3 | . . 1 2 Utility 1 | . . 1 . Weapon 1 | . . . 1 Highest Loss Streak 4 | . . 2 4 Average Slot Usage (%) 60 | . 73 38 51 Engine 3 | . . . 8 Leg 7 | . . . 18 Wheel 13 | . 25 11 . Device 6 | . 11 8 . Storage 17 | . 14 19 22 Energy Gun 11 | . 22 . 2 Naked Turns . | . . . . Heaviest Build 27 | 8 9 21 27 Greatest Support 26 | 26 26 16 20 Greatest Overweight (x) 6 | . . 6 6 Average Overweight (x) . | . . . 1 Largest Inventory Capacity 12 | 6 6 12 12 Average Capacity 8 | 5 6 10 12 Most Carried 6 | 5 6 6 6 Average Carried 4 | 3 5 5 3 Final Capacity 12 | 6 6 12 12 Final Carried 6 | 5 6 5 5 Class Distribution -------------------- 100% | Mutant Dominant Class ---------------- Mutant | -10/Materials Mutant | -9/Materials Mutant | -9/Storage Resources | -11 -10 -9 -9 ----------- Run | Scr Mat Mat Sto Matter Collected 235 | 188 . . 47 Remotely . | . . . . Salvage Created 47 | . . . 47 Parts 2 | . . . 2 Haulers Intercepted . | . . . . Recyclers Shooed . | . . . . Parts Field Recycled . | . . . . Retrieved Matter . | . . . . Parts Self-Destructed . | . . . . Prevented . | . . . . Kills | -11 -10 -9 -9 ------- Run | Scr Mat Mat Sto Combat Hostiles Destroyed 1 | . . . 1 Guns 1 | . . . 1 Classes Destroyed 1 | . . . 1 Grunt 1 | . . . 1 Best Kill Streak 1 | . . . 1 Combat Bots Only 1 | . . . 1 Max Kills in Single Turn 1 | . . . 1 Gunslinging . | . . . . Exploded . | . . . . Melee . | . . . . Uniques/NPCs Destroyed . | . . . . Combat | -11 -10 -9 -9 -------- Run | Scr Mat Mat Sto Damage Taken 965 | . 65 198 702 Core 415 | . 10 120 285 Absorbed by Shields . | . . . . Core Remaining (%) 98 | 100 96 . . Volleys Fired 6 | . 1 . 5 Largest 2 | . 2 . 1 Hottest 90 | . 90 . 40 Shots Fired 7 | . 2 . 5 Gun 7 | . 2 . 5 Cannon . | . . . . Launcher . | . . . . Special . | . . . . Kinetic . | . . . . Thermal 1 | . 1 . . Explosive . | . . . . Electromagnetic 6 | . 1 . 5 Robot Hit Streak 7 | . 2 . 7 Robot Miss Streak . | . . . . Penetration Max . | . . . . Secondary Targets . | . . . . Shots Hit Robots 7 | . 2 . 5 Core Hits 1 | . . . 1 Critical Hits . | . . . . Critical Kills . | . . . . Critical Parts Destroyed . | . . . . Melee Attacks . | . . . . Impact . | . . . . Slashing . | . . . . Piercing . | . . . . Sneak Attacks . | . . . . Combat Hostiles . | . . . . Follow-up Attacks . | . . . . Damage Inflicted 102 | . 25 . 77 Guns 96 | . 25 . 71 Cannons . | . . . . Explosions . | . . . . Melee . | . . . . Ramming 6 | . . . 6 Kinetic . | . . . . Thermal 13 | . 13 . . Explosive . | . . . . Electromagnetic 83 | . 12 . 71 Impact . | . . . . Slashing . | . . . . Piercing . | . . . . Highest Corruption 1 | . 1 . . Average Corruption 1 | . 1 . . Corruption Purged . | . . . . Overload Shots . | . . . . Overflow Damage . | . . . . Projectiles . | . . . . Explosions . | . . . . Melee . | . . . . Knockbacks . | . . . . Impact . | . . . . Kinetic . | . . . . Secondary . | . . . . Self-Inflicted Damage 3 | . . . 3 Shots . | . . . . Rammed 2 | . . . 2 Targets Rammed 2 | . . . 2 Kicked . | . . . . Crushed . | . . . . Highest Temperature 33 | . 15 . 33 Average Temperature 16 | . 10 . 17 Received Heat Transfer 363 | . 36 78 249 Siege Activations . | . . . . Robots Corrupted . | . . . . Combat Hostiles . | . . . . Parts Fried . | . . . . Impact Corruptions . | . . . . Robots Melted . | . . . . Combat Hostiles . | . . . . Parts Melted . | . . . . Heat Transferred 37 | . 37 . . Parts Sabotaged . | . . . . Parts Stolen . | . . . . Parts Stripped . | . . . . Power Chain Reactions . | . . . . Missiles Intercepted . | . . . . Alert | -11 -10 -9 -9 ------- Run | Scr Mat Mat Sto Peak Influence 35 | . 15 20 35 Initial 5 | . . 5 . Average 9 | . 10 9 11 Maximum Alert Level . | . . . . Low Security (%) 100 | 100 100 100 100 Level 1 . | . . . . Level 2 . | . . . . Level 3 . | . . . . Level 4 . | . . . . Level 5 . | . . . . High Security . | . . . . Max Security . | . . . . Squads Dispatched 4 | . 1 1 2 Investigation 1 | . . . 1 Extermination . | . . . . Reinforcement 3 | . 1 1 1 Assault . | . . . . Garrison . | . . . . Intercept . | . . . . Construction Impeded . | . . . . Haulers Reinforced . | . . . . Stealth | -11 -10 -9 -9 --------- Run | Scr Mat Mat Sto Distress Signals 1 | . . 1 . Communications Jammed . | . . . . Distress Signals . | . . . . Times Spotted 18 | . 4 7 7 Peak Tracking Total 7 | . 4 7 7 Tactical Retreats . | . . . . Traps | -11 -10 -9 -9 ------- Run | Scr Mat Mat Sto Traps Triggered 4 | . 2 . 2 Indirectly . | . . . . Trap Hack Attempts . | . . . . Triggered . | . . . . Disarmed . | . . . . Reprogrammed . | . . . . Reused . | . . . . Traps Extracted . | . . . . Installed . | . . . . Triggered . | . . . . Machines | -11 -10 -9 -9 ---------- Run | Scr Mat Mat Sto Machines Disabled . | . . . . Max in Single Turn . | . . . . Machines Sabotaged . | . . . . Garrisons Compromised . | . . . . Overloaded Fab Kills . | . . . . Fab Network Shutdowns . | . . . . Hacking | -11 -10 -9 -9 --------- Run | Scr Mat Mat Sto Machines Accessed 1 | . . . 1 Terminals 1 | . . . 1 Fabricators . | . . . . Repair Stations . | . . . . Recycling Units . | . . . . Scanalyzers . | . . . . Garrison Access . | . . . . Total Hacks 1 | . . . 1 Successful 1 | . . . 1 Failed . | . . . . Catastrophic . | . . . . Database Lockouts . | . . . . Manual . | . . . . Terminals 1 | . . . 1 Fabricators . | . . . . Repair Stations . | . . . . Recycling Units . | . . . . Scanalyzers . | . . . . Garrison Access . | . . . . Terminal Hacks 1 | . . . 1 Open Door 1 | . . . 1 Fabricator Hacks . | . . . . Repair Station Hacks . | . . . . Recycling Unit Hacks . | . . . . Scanalyzer . | . . . . Garrison Access Hacks . | . . . . Unauthorized Hacks . | . . . . Terminals . | . . . . Fabricators . | . . . . Repair Stations . | . . . . Recycling Units . | . . . . Scanalyzers . | . . . . Garrison Access . | . . . . Data Cores Recovered . | . . . . Used . | . . . . Hacking Detections . | . . . . Full Trace Events . | . . . . Feedback Events . | . . . . Feedback Blocked . | . . . . Robot Schematics Acquired . | . . . . Robots Built . | . . . . Matter . | . . . . Time . | . . . . Total Robot Build Rating . | . . . . Part Schematics Acquired . | . . . . Parts Built . | . . . . Matter . | . . . . Time . | . . . . Total Part Build Rating . | . . . . Parts Repaired . | . . . . Time . | . . . . Parts Recycled . | . . . . Recycled Matter . | . . . . Retrieved Matter . | . . . . Retrieved Components . | . . . . Parts Scanalyzed . | . . . . Part Schematics Acquired . | . . . . Parts Damaged . | . . . . Bothacking | -11 -10 -9 -9 ------------ Run | Scr Mat Mat Sto Used RIF Installer . | . . . . Robots Hacked . | . . . . Non-combat . | . . . . Combat . | . . . . Robot Hacks Applied . | . . . . Relay Couplers Released . | . . . . Robots Rewired . | . . . . Allies Hacked . | . . . . Hacks Repelled . | . . . . Allies | -11 -10 -9 -9 -------- Run | Scr Mat Mat Sto Total Allies . | . . . . Largest Group . | . . . . Highest-Rated Group . | . . . . Highest-Rated Ally . | . . . . Total Orders . | . . . . Ally Attacks . | . . . . Total Damage . | . . . . Kills . | . . . . Allies Corrupted . | . . . . Allies Melted . | . . . . Intel | -11 -10 -9 -9 ------- Run | Scr Mat Mat Sto Robot Analysis Total . | . . . . Derelict Logs Recovered . | . . . . Drone Launches . | . . . . Drone Recoveries . | . . . . Exploration | -11 -10 -9 -9 ------------- Run | Scr Mat Mat Sto Turns Passed 371 | 62 147 45 117 Spaces Moved 308 | 56 154 42 56 Core 12 | 7 . 1 4 Treads . | . . . . Legs 52 | . . . 52 Wheels 244 | 49 154 41 . Hover . | . . . . Flight . | . . . . Fastest Speed 50 | 50 90 100 150 Average Speed 106 | 85 91 112 164 Slowest Speed 350 | 90 100 350 350 Overloaded Moves . | . . . . Propulsion Burnouts . | . . . . Robots Hopped . | . . . . Cave-ins Triggered . | . . . . Exploration Rate (%) 21 | 5 55 12 14 Regions Visited 3 Branch Regions 1 Pre-discovered Areas . | . . . . Known Exits Taken . | . . . . Unknown Exits Taken 3 | 1 1 1 . Scrap Searched . | . . . . Spaces Dug . | . . . . Terrain Destroyed . | . . . . Melee . | . . . . Projectile . | . . . . AOE . | . . . . Terrain Rammed . | . . . . Walls Destroyed . | . . . . Machines Disabled . | . . . . Actions | -11 -10 -9 -9 --------- Run | Scr Mat Mat Sto Total 346 | 70 157 44 75 Wait . | . . . . Move 305 | 55 153 41 56 Hop . | . . . . Pick Up 19 | 10 2 1 6 Fast Attach . | . . . . Attach 13 | 5 1 1 6 Detach . | . . . . Swap . | . . . . Drop 1 | . . 1 . Fire 6 | . 1 . 5 Melee . | . . . . Ram . | . . . . Kick 2 | . . . 2 Crush . | . . . . Escape Stasis . | . . . . Rewire . | . . . . Trap . | . . . . Miscellaneous . | . . . . Route ------- -11/Scrapyard -10/Materials -9/Materials -9/Storage History --------- Turn | Location | Event 25 | -11/Scrapyard | Discovered new exit (range 15) 63 | -11/Scrapyard | Entered Materials 195 | -10/Materials | Discovered new exit (range 16) 210 | -10/Materials | Entered another Materials area 210 | -9/Materials | Evolved 2 slots: Utility x2 242 | -9/Materials | Discovered new exit (range 13) 255 | -9/Materials | Entered Storage 302 | -9/Storage | Build established: Mutant 358 | -9/Storage | Core integrity fell below 50% 366 | -9/Storage | Core integrity fell below 20% 372 | -9/Storage | Destroyed by Y-45 Defender with Beam Rifle Last Messages --------------- U-05 Engineer lays Concrete. EM Pulse Gun destroyed. Acquired 47 matter. Triggered Alarm Trap. An alarm sounds. ALERT: Alarm triggered, dispatching investigation squad. U-05 Engineer destroyed. ALERT: Hostiles spotted, dispatching reinforcements to Terminal S004. Connecting with Door Terminal... Current location identified: Storage >>Open Sealed Heavy Doors opened. Acquired Prototype Engine. Aluminum Leg destroyed. Ion Engine destroyed. Slammed into Y-45 Defender. Aluminum Leg destroyed. R-06 Scavenger collects Aluminum Leg. K-01 Serf collects debris. U-05 Engineer builds a Door. Map ----- +----------------------------------------------------+ | ?????????????????????????????????????????????????? | | ?????????????????????????????????????????????????? | | ?????????????????????????????????????????????????? | | ?????????????????????????????????????????????????? | | ?????????????????????????????????????????????????? | | ?????????????????????????????????????????????????? | | ?????????????????????????????????????????????????? | | ?????????????????????????????????????????????????? | | ?????????????????????????????????????????????????? | | ?????????????????????????????????????????????????? | | ???????????????????????? ?????????????????????? | | ???????????????????????? ?????????????????????? | | ???????????????????????# ?????????????????????? | | ???????????????????????# ?????????????????????? | | ???????????????????????# ?????????????????????? | | ???????????????????????# ?????????????????????? | | ???????????????????????# r ?????????????????????? | | ???????????????????????# #?????????????????????? | | ???????????????????????+ #?????????????????????? | | ???????????????????????# #?????????????????????? | | ???????????????????????# #?????????????????????? | | ???????????????????????# #?????????????????????? | | ???????????????????????# #?????????????????????? | | ????????????????????##?#g g#?????????????????????? | | ???#####+####???#### ### r#?????????????????????? | | ???# ## +u @ #####?????????????????? | | ???# #?""" ## Y# ##????????????????? | | ???# #?""" ] ## YY T#????????????????? | | ???# #??"" ?# k ## ##????????????????? | | ???# #?? ?# ## #?????????????????? | | ???# !!! #???" ??# ## #?????????????????? | | ???# !! #???" ??#!% ##**#?????????????????? | | ???# ! #???? ???# = #####?????????????????? | | ???# #???? ??## ##????????????????????? | | ??######+#########+#### #????????????????????? | | ??# #????????????????????? | | ??# #????????????????????? | | ??# #????????????????????? | | ??######+############## #????????????????????? | | ??????? ????????????#######????????????????????? | | ??????? ""???????????????????????????????????????? | | ??????" """??????????????????????????????????????? | | ??????" """??????????????????????????????????????? | | ????? ?????????????????????????????????????? | | ?????#######?????????????????????????????????????? | | | | | | | | | | | +----------------------------------------------------+ Best States ------------- Heat Dissipation 28 Energy Generation 10 Energy Capacity 250 Matter Stores 249 Matter Capacity 300 Sight Range 16 Terrain Scan Range 14 Terrain Scan Density 10 Evasion (%) 42 Item Schematics ----------------- None Robot Schematics ------------------ None Fabricated ------------ Nothing Alien Tech Used ----------------- None Achievements -------------- None Challenges ------------ None Game ------ Seed ImprinterShieldBay Manual? 0 Play Time 00:06:44 Cumulative 20.6 hours Start 2021.08.16 @ 22:46:05 End 2021.08.16 @ 22:51:37 Sessions 1 Manual Loads 0 Difficulty Rogue Special Mode None Game No. 54 Rogue 34 Adventurer 20 Explorer 0 Win Type - Total 1 Types 1/0/0/0/0/0/0/0/0 Lore% 18 Gallery% 42 Achievement% 30 Wizard Run 0 Options --------- ASCII 0 Keyboard 0 Movement Arrows Keybinds 0 Fullscreen 1 Font 18/SmallcapsGlow Map View 76x50 Tactical HUD 0 Map Filters NONE Filters NONE Steam 1 RUN: 156e009c-9604-4ece-841c-6f082d527c75